Cogmind - Beta 11 X4 @@@ ROGUE MODE // 2021.06.03 @ 15:15:47 Player: rusmal Result: Destroyed by D-53 Grenadier with Mini Grenade Launcher Performance ------------- Evolutions (1) 500 Regions Visited (4) 800 Robots Destroyed (78) 390 Value Destroyed (1941) 1941 Prototype IDs (4) 80 Alien Tech Used (0) 0 Bonus (113) 113 TOTAL SCORE: 3824 Bonus ------- High Alert Combat Kills 113 Cogmind --------- Core Integrity 0/400 Matter 255/300 Energy 99/100 System Corruption 2% Temperature Cool (0) Movement Walking (120) Location -9/Mines Parts ------- > --- POWER (1) -------- (None) > --- PROPULSION (3) --- Aluminum Leg Aluminum Leg Aluminum Leg > --- UTILITY (3) ------ Improved Heat Sink Large Storage Unit Improved Targeting Computer > --- WEAPON (2) ------- (None) > --- INVENTORY (15) --- Cesium-ion Thruster Cesium-ion Thruster Cesium-ion Thruster Cesium-ion Thruster Medium Storage Unit Improved Sensor Array Improved Sensor Array Light Armor Plating Hacking Suite Hacking Suite Hacking Suite Hacking Suite Improved Medium Laser Autogun Mace Peak State ------------ > --- POWER ------------ Light Ion Engine > --- PROPULSION ------- Aluminum Leg Aluminum Leg Aluminum Leg > --- UTILITY ---------- Large Storage Unit Improved Targeting Computer Improved Targeting Computer > --- WEAPON ----------- Improved Medium Laser Improved Medium Laser > --- INVENTORY -------- Heavy Ion Engine Light Treads Aluminum Leg Cesium-ion Thruster Cesium-ion Thruster Cesium-ion Thruster Cesium-ion Thruster Medium Storage Unit Improved Sensor Array Improved Sensor Array Light Armor Plating Hacking Suite Grenade Launcher Grenade Launcher [Rating: 18] Favorites ----------- Power Light Ion Engine Engine Light Ion Engine Propulsion Aluminum Leg Leg Aluminum Leg Utility Improved Targeting Computer Device Heat Sink Storage Large Storage Unit Processor Improved Targeting Computer Weapon Heavy Assault Rifle Energy Gun Medium Laser Ballistic Gun Heavy Assault Rifle Ballistic Cannon Light Cannon Launcher Grenade Launcher Build | -11 -10 -10 -9 -9 ------- Run | Scr Mat Min Mat Min Slots Evolved 2 | . . . 2 . Power . | . . . . . Propulsion 1 | . . . 1 . Utility 1 | . . . 1 . Weapon . | . . . . . Parts Attached 69 | 6 15 2 45 1 Power 18 | 1 4 . 13 . Engine 18 | 1 4 . 13 . Core . | . . . . . Reactor . | . . . . . Propulsion 17 | 2 4 . 11 . Treads . | . . . . . Leg 17 | 2 4 . 11 . Wheel . | . . . . . Hover . | . . . . . Flight . | . . . . . Utility 12 | 1 3 . 8 . Device 4 | . 1 . 3 . Storage 5 | 1 1 . 3 . Processor 3 | . 1 . 2 . Hackware . | . . . . . Protection . | . . . . . Artifact . | . . . . . Weapon 22 | 2 4 2 13 1 Energy Gun 8 | 1 2 . 5 . Energy Cannon . | . . . . . Ballistic Gun 8 | 1 . . 7 . Ballistic Cannon 3 | . 1 1 1 . Launcher 3 | . 1 1 . 1 Special Weapon . | . . . . . Impact Weapon . | . . . . . Slashing Weapon . | . . . . . Piercing Weapon . | . . . . . Special Melee Weapon . | . . . . . Unidentified Prototypes 1 | . . . 1 . Corrupted Parts 1 | . . . 1 . System Corruption 2 | . . . 2 . Parts Lost 12 | . 3 . 6 3 Power 4 | . 2 . 1 1 Propulsion 2 | . . . 2 . Utility 1 | . 1 . . . Weapon 5 | . . . 3 2 Highest Loss Streak 3 | . 1 . 2 3 Average Slot Usage (%) 98 | . 97 100 99 98 Engine 11 | . 13 14 10 10 Leg 31 | . 28 28 33 33 Device 7 | . 3 . 9 11 Storage 11 | . 14 14 11 11 Processor 11 | . 9 14 12 11 Energy Gun 7 | . 11 14 5 . Ballistic Gun 14 | . 13 . 15 11 Naked Turns . | . . . . . Heaviest Build 34 | 11 18 18 34 33 Greatest Support 33 | 20 20 20 33 30 Greatest Overweight (x) 1 | . . . 1 1 Average Overweight (x) . | . . . . . Largest Inventory Capacity 15 | 8 10 10 15 15 Average Capacity 12 | 6 8 10 14 15 Most Carried 15 | 6 10 10 15 15 Average Carried 12 | 3 8 9 14 15 Final Capacity 15 | 8 10 10 15 15 Final Carried 15 | 6 9 10 15 15 Class Distribution -------------------- 57% | Scavenger-Mutant 42% | Mutant Dominant Class ---------------- Mutant | -10/Materials Mutant | -10/Mines Scavenger-Mutant | -9/Materials Scavenger-Mutant | -9/Mines Resources | -11 -10 -10 -9 -9 ----------- Run | Scr Mat Min Mat Min Matter Collected 1472 | 156 279 102 925 10 Remotely 97 | . 97 . . . Salvage Created 3184 | . 503 163 2518 . Parts 179 | . 21 9 149 . Haulers Intercepted 7 | . 1 . 6 . Recyclers Shooed 6 | . 1 . 5 . Parts Field Recycled . | . . . . . Retrieved Matter . | . . . . . Parts Self-Destructed . | . . . . . Prevented . | . . . . . Kills | -11 -10 -10 -9 -9 ------- Run | Scr Mat Min Mat Min Combat Hostiles Destroyed 53 | . 10 4 38 1 Guns 45 | . 7 . 38 . Cannons 3 | . 2 1 . . AOE 4 | . . 3 . 1 Classes Destroyed 10 | . 3 2 4 1 Worker 1 | . . . 1 . Builder 1 | . . 1 . . Hauler 7 | . 1 . 6 . Recycler 9 | . . 1 8 . Operator 8 | . 2 . 6 . Swarmer 10 | . . . 10 . Grunt 31 | . 10 4 17 . Duelist 1 | . . . 1 . Sentry 10 | . . . 10 . Assembled 1 | . . . . 1 Best Kill Streak 6 | . 4 5 6 1 Combat Bots Only 5 | . 4 3 5 1 Max Kills in Single Turn 1 | . 1 1 1 1 Gunslinging . | . . . . . Exploded 1 | . . 1 . 1 Melee . | . . . . . Uniques/NPCs Destroyed . | . . . . . Combat | -11 -10 -10 -9 -9 -------- Run | Scr Mat Min Mat Min Damage Taken 2587 | . 564 180 1366 477 Core 636 | . 156 77 224 179 Absorbed by Shields . | . . . . . Core Remaining (%) 53 | 100 . 6 . . Volleys Fired 206 | . 45 10 144 7 Largest 2 | . 2 2 2 2 Hottest 112 | . 70 85 112 59 Shots Fired 387 | . 90 15 272 10 Gun 369 | . 85 5 272 7 Cannon 10 | . 5 5 . . Launcher 8 | . . 5 . 3 Special . | . . . . . Kinetic 218 | . 50 5 156 7 Thermal 109 | . 40 5 64 . Explosive 8 | . . 5 . 3 Electromagnetic 52 | . . . 52 . Robot Hit Streak 25 | . 10 6 25 9 Robot Miss Streak 4 | . 4 2 3 2 Penetration Max . | . . . . . Secondary Targets 1 | . . . 1 . Max Gunslinging Chain 1 | . . . 1 . Shots Hit Robots 279 | . 63 12 198 6 Core Hits 141 | . 32 10 93 6 Critical Kills . | . . . . . Critical Parts Destroyed . | . . . . . Critical Strikes 6 | . 2 . 4 . Burn 6 | . 2 . 4 . Melee Attacks . | . . . . . Impact . | . . . . . Slashing . | . . . . . Piercing . | . . . . . Sneak Attacks . | . . . . . Combat Hostiles . | . . . . . Follow-up Attacks . | . . . . . Damage Inflicted 4367 | . 682 441 3064 180 Guns 3779 | . 613 39 3053 74 Cannons 136 | . 69 67 . . Explosions 452 | . . 335 11 106 Melee . | . . . . . Ramming . | . . . . . Kinetic 1911 | . 302 67 1468 74 Thermal 1271 | . 380 39 852 . Explosive 441 | . . 335 . 106 Electromagnetic 744 | . . . 744 . Impact . | . . . . . Slashing . | . . . . . Piercing . | . . . . . Highest Corruption 2 | . 1 1 2 2 Average Corruption 1 | . 1 1 2 2 Corruption Purged . | . . . . . Effects 24 | . 1 1 20 2 Message Errors 7 | . . 1 6 . Heat Flow Errors 8 | . . . 7 1 Energy Discharges 1 | . . . 1 . Data Loss (minor) 7 | . 1 . 5 1 Weapon Failures 1 | . . . 1 . Overload Shots . | . . . . . Overflow Damage 2 | . . 2 . . Projectiles 2 | . . 2 . . Explosions . | . . . . . Melee . | . . . . . Knockbacks 4 | . 3 1 . . Impact . | . . . . . Kinetic 3 | . 2 1 . . Secondary 1 | . 1 . . . Self-Inflicted Damage 76 | . . . 76 . Shots 2 | . . . 2 . Rammed . | . . . . . Targets Rammed . | . . . . . Kicked . | . . . . . Crushed . | . . . . . Highest Temperature 296 | . 226 165 296 140 Average Temperature 76 | . 69 72 85 78 Received Heat Transfer 843 | . 249 123 471 . Siege Activations . | . . . . . Robots Corrupted . | . . . . . Combat Hostiles . | . . . . . Parts Fried 6 | . . . 6 . Impact Corruptions . | . . . . . Robots Melted 1 | . 1 . . . Combat Hostiles 1 | . 1 . . . Parts Melted 5 | . 3 . 2 . Heat Transferred 3652 | . 1258 111 2283 . Parts Sabotaged . | . . . . . Parts Stolen . | . . . . . Parts Stripped . | . . . . . Power Chain Reactions 2 | . . . 2 . Missiles Intercepted . | . . . . . Alert | -11 -10 -10 -9 -9 ------- Run | Scr Mat Min Mat Min Peak Influence 698 | . 160 147 698 261 Initial 261 | . . 7 57 261 Average 288 | . 45 105 414 259 Maximum Alert Level 2 | . . . 2 1 Low Security (%) 46 | 100 100 100 19 . Level 1 15 | . . . 21 100 Level 2 37 | . . . 59 . Level 3 . | . . . . . Level 4 . | . . . . . Level 5 . | . . . . . High Security . | . . . . . Max Security . | . . . . . Squads Dispatched 9 | . 2 . 7 . Investigation 2 | . . . 2 . Extermination . | . . . . . Reinforcement 7 | . 2 . 5 . Assault . | . . . . . Garrison . | . . . . . Intercept . | . . . . . Construction Impeded . | . . . . . Haulers Reinforced . | . . . . . Cargo Convoy Interrupts . | . . . . . Stealth | -11 -10 -10 -9 -9 --------- Run | Scr Mat Min Mat Min Distress Signals 7 | . 1 . 6 . Communications Jammed . | . . . . . Distress Signals . | . . . . . Times Spotted 124 | . 28 6 86 4 Peak Tracking Total 15 | . 5 3 6 15 Tactical Retreats 6 | . . 2 4 . Traps | -11 -10 -10 -9 -9 ------- Run | Scr Mat Min Mat Min Traps Triggered 4 | . 2 . 2 . Indirectly . | . . . . . Trap Hack Attempts . | . . . . . Triggered . | . . . . . Disarmed . | . . . . . Reprogrammed . | . . . . . Reused . | . . . . . Traps Extracted . | . . . . . Installed . | . . . . . Triggered . | . . . . . Machines | -11 -10 -10 -9 -9 ---------- Run | Scr Mat Min Mat Min Machines Disabled 1 | . . . 1 . Max in Single Turn 1 | . . . 1 . Machines Sabotaged . | . . . . . Garrisons Compromised . | . . . . . Overloaded Fab Kills . | . . . . . Fab Network Shutdowns . | . . . . . Hacking | -11 -10 -10 -9 -9 --------- Run | Scr Mat Min Mat Min Machines Accessed 21 | . 9 . 12 . Terminals 13 | . 6 . 7 . Fabricators . | . . . . . Repair Stations 2 | . 1 . 1 . Recycling Units 4 | . 2 . 2 . Scanalyzers 2 | . . . 2 . Garrison Access . | . . . . . Total Hacks 44 | . 18 . 26 . Successful 29 | . 9 . 20 . Failed 15 | . 9 . 6 . Catastrophic . | . . . . . Database Lockouts . | . . . . . Manual 15 | . 8 . 7 . Terminals 25 | . 13 . 12 . Fabricators . | . . . . . Repair Stations 4 | . 2 . 2 . Recycling Units 9 | . 3 . 6 . Scanalyzers 6 | . . . 6 . Garrison Access . | . . . . . Terminal Hacks 6 | . 4 . 2 . Prototype ID Bank 3 | . 2 . 1 . Alert Level 1 | . 1 . . . Unreport Threat 1 | . . . 1 . Hauler Manifests 1 | . 1 . . . Fabricator Hacks . | . . . . . Repair Station Hacks 3 | . 1 . 2 . Scan Component 2 | . 1 . 1 . Repair 1 | . . . 1 . Recycling Unit Hacks 9 | . 3 . 6 . Report Inventory 5 | . 2 . 3 . Retrieve Components 4 | . 1 . 3 . Scanalyzer 6 | . . . 6 . Insert Component 3 | . . . 3 . Analyze 3 | . . . 3 . Garrison Access Hacks . | . . . . . Unauthorized Hacks 5 | . 1 . 4 . Terminals 5 | . 1 . 4 . Botnet 3 | . . . 3 . Operators 2 | . 1 . 1 . Fabricators . | . . . . . Repair Stations . | . . . . . Recycling Units . | . . . . . Scanalyzers . | . . . . . Garrison Access . | . . . . . Data Cores Recovered 1 | . . . 1 . Used 1 | . . . 1 . Hacking Detections 15 | . 9 . 6 . Full Trace Events . | . . . . . Feedback Events . | . . . . . Feedback Blocked . | . . . . . Robot Schematics Acquired . | . . . . . Robots Built . | . . . . . Matter . | . . . . . Time . | . . . . . Total Robot Build Rating . | . . . . . Part Schematics Acquired 3 | . . . 3 . Parts Built . | . . . . . Matter . | . . . . . Time . | . . . . . Total Part Build Rating . | . . . . . Parts Repaired 1 | . . . 1 . Time 53 | . . . 53 . Parts Recycled . | . . . . . Recycled Matter . | . . . . . Retrieved Matter . | . . . . . Retrieved Components 24 | . 2 . 22 . Parts Scanalyzed 3 | . . . 3 . Part Schematics Acquired 3 | . . . 3 . Parts Damaged 1 | . . . 1 . Bothacking | -11 -10 -10 -9 -9 ------------ Run | Scr Mat Min Mat Min Used RIF Installer . | . . . . . Robots Hacked . | . . . . . Non-combat . | . . . . . Combat . | . . . . . Robot Hacks Applied . | . . . . . Relay Couplers Released . | . . . . . Robots Rewired . | . . . . . Allies Hacked . | . . . . . Hacks Repelled . | . . . . . Allies | -11 -10 -10 -9 -9 -------- Run | Scr Mat Min Mat Min Total Allies . | . . . . . Largest Group . | . . . . . Highest-Rated Group . | . . . . . Highest-Rated Ally . | . . . . . Total Orders . | . . . . . Ally Attacks . | . . . . . Total Damage . | . . . . . Kills . | . . . . . Allies Corrupted . | . . . . . Allies Melted . | . . . . . Intel | -11 -10 -10 -9 -9 ------- Run | Scr Mat Min Mat Min Robot Analysis Total . | . . . . . Derelict Logs Recovered 1 | . . 1 . . Drone Launches . | . . . . . Drone Recoveries . | . . . . . Exploration | -11 -10 -10 -9 -9 ------------- Run | Scr Mat Min Mat Min Turns Passed 5134 | 89 1387 256 3275 127 Spaces Moved 3183 | 65 919 187 1957 55 Core 4 | 4 . . . . Treads . | . . . . . Legs 3179 | 61 919 187 1957 55 Wheels . | . . . . . Hover . | . . . . . Flight . | . . . . . Fastest Speed 50 | 50 120 120 120 120 Average Speed 121 | 115 120 120 120 198 Slowest Speed 200 | 120 120 120 200 200 Overloaded Moves . | . . . . . Propulsion Burnouts . | . . . . . Robots Hopped . | . . . . . Cave-ins Triggered . | . . . . . Exploration Rate (%) 52 | 4 98 40 97 23 Regions Visited 4 Branch Regions 2 Pre-discovered Areas . | . . . . . Known Exits Taken . | . . . . . Unknown Exits Taken 4 | 1 1 1 1 . Scrap Searched 1 | . . . . 1 Spaces Dug . | . . . . . Terrain Destroyed 58 | . . 22 5 31 Melee . | . . . . . Projectile . | . . . . . AOE 58 | . . 22 5 31 Terrain Rammed . | . . . . . Walls Destroyed . | . . . . . Machines Disabled . | . . . . . Actions | -11 -10 -10 -9 -9 --------- Run | Scr Mat Min Mat Min Total 4111 | 76 1128 202 2642 63 Wait 532 | . 121 3 408 . Move 3179 | 64 918 186 1956 55 Hop . | . . . . . Pick Up 51 | 6 12 1 32 . Fast Attach 20 | 6 4 . 10 . Attach 10 | . 3 . 7 . Detach 9 | . 2 . 7 . Swap 39 | . 8 2 28 1 Drop 65 | . 15 . 50 . Fire 206 | . 45 10 144 7 Melee . | . . . . . Ram . | . . . . . Kick . | . . . . . Crush . | . . . . . Escape Stasis . | . . . . . Rewire . | . . . . . Trap . | . . . . . Miscellaneous . | . . . . . Route ------- -11/Scrapyard -10/Materials (discovered 4 exits: *Mat x3 / [*Min]) -10/Mines -9/Materials (discovered 4 exits: [*Mat x3] / [*Min]) -9/Mines History --------- Turn | Location | Event 8 | -11/Scrapyard | Discovered new exit (range 16) 90 | -11/Scrapyard | Entered Materials 314 | -10/Materials | Build established: Mutant 359 | -10/Materials | Discovered new exit (range 14) 500 | -10/Materials | Discovered new exit (range 15) 924 | -10/Materials | Core integrity fell below 50% 1129 | -10/Materials | Discovered new exit (range 9) 1392 | -10/Materials | Discovered new exit (range 3) 1477 | -10/Materials | Entered Mines 1482 | -10/Mines | Core integrity fell below 20% 1522 | -10/Mines | Discovered new exit (range 10) 1667 | -10/Mines | Learned Materials machine intel 1733 | -10/Mines | Entered Materials 1733 | -9/Materials | Evolved 2 slots: Propulsion x1, Utility x1 1734 | -9/Materials | Loaded intel: 59 machine locations 2323 | -9/Materials | Discovered new exit (range 8) 2510 | -9/Materials | Build established: Scavenger-Mutant 3364 | -9/Materials | Discovered new exit (range 7) 3833 | -9/Materials | Core integrity fell below 50% 4100 | -9/Materials | Repaired Broken Cesium-ion Thruster 4106 | -9/Materials | Discovered new exit (range 8) 4685 | -9/Materials | Discovered new exit (range 16) 5008 | -9/Materials | Entered Mines 5107 | -9/Mines | Assembled infested the area 5133 | -9/Mines | Core integrity fell below 20% 5135 | -9/Mines | Destroyed by D-53 Grenadier with Mini Grenade Launcher Last Messages --------------- 05111_ Acquired 10 matter. 05117_ D-53 Grenadier unfolds itself. 05119_ The unstable cave ceiling collapses. 05121_ as-51495 destroyed. 05122_ The unstable cave ceiling collapses. 05123_ as-63247 destroyed. 05125_ The unstable cave ceiling collapses. 05125_ HV Slug penetrates Wall. 05126_ The unstable cave ceiling collapses. 05126_ Missile Launcher destroyed. 05126_ Lgt. Ion Engine destroyed. 05127_ The unstable cave ceiling collapses. 05127_ HV Slug penetrates Wall. 05129_ System corrupted: Heat flow error (+171). 05130_ The unstable cave ceiling collapses. 05131_ Destroyed Shock Absorption System. 05131_ U-05 Engineer lays Concrete. 05133_ The unstable cave ceiling collapses. 05134_ U-05 Engineer lays Concrete. 05135_ Hvy. Assault Rifle destroyed. Map ----- +----------------------------------------------------+ | ???????????# ######????????????????? | | ???????????# #????????????????? | | ??????????## #????????????????? | | ?????????## ### #????????????????? | | ????????## ##?# #????????????????? | | ????????# #??# #????????????????? | | ???????## ##?## ##???????????????? | | ???????# ##### ##??????????????? | | ??????## #### #??????????????? | | ??????# ### #??????????????? | | ??????# ## #??????????????? | | ??????# ##??????????????? | | ??????# ####???????????????? | | ??????# #####t #??????????????????? | | ??????## #???# #??????????????????? | | ???????## #??# #??????????????????? | | ????????# ### ##??????????????????? | | ??????### ## ###???????????????????? | | ?????## #?????????????????????? | | ?????# """ #####?????????????????? | | ????## """ ##????????????????? | | ???## """ #????????????????? | | ??## #????????????????? | | ??# #????????????????? | | ?# #????????????????? | | ?# @ ##???????????????? | | ?# # #???????????????? | | ?# ##### #??????????????? | | ?####????# ??????????? | | ???????? # dd #### ?????????? | | ?????? % ##??????????????? | | ????# ##???????????????? | | ???# u #????????????????? | | ???## # ???????????????? | | ???# # $??????????????? | | ???# ## #####?????????????? | | ??? #; ?? ##?????????????????? | | ??? % #?? #??????????????????? | | ????? ? ####??? ##??????????????????? | | ??????? ???????###???????????????????? | | ??????????????????????????????????????? | | ??????????????????????????????????????? | | ??????????????????????????????????????? | | ??????????????????????????????????????? | | ??????????????????????????????????????? | | ??????????????????????????????????????? | | ??????????????????????????????????????? | | ??????????????????????????????????????? | | ??????????????????????????????????????? | | ??????????????????????????????????????? | +----------------------------------------------------+ Best States ------------- Heat Dissipation 42 Energy Generation 14 Energy Capacity 280 Matter Stores 300 Matter Capacity 300 Sight Range 16 Terrain Scan Density 10 Evasion (%) 55 Targeting Accuracy 12 Item Schematics ----------------- Hacking Suite | -9/Materials | Scanalyzed Cesium-ion Thruster | -9/Materials | Scanalyzed Imp. Sensor Array | -9/Materials | Scanalyzed Robot Schematics ------------------ None Fabricated ------------ Nothing Alien Tech Used ----------------- None Achievements -------------- None Challenges ------------ None Game ------ Seed StasisProtonAccelerator Manual? 0 Play Time 01:14:43 Cumulative 50.3 hours Start 2021.06.03 @ 13:22:48 End 2021.06.03 @ 15:15:47 Sessions 1 Manual Loads 0 Difficulty Rogue Special Mode None Game No. 45 Rogue 45 Adventurer 0 Explorer 0 Win Type - Total 1 Types 1/0/0/0/0/0/0/0/0 Lore% 43 Gallery% 48 Achievement% 40 Wizard Run 0 Options --------- ASCII 1 Keyboard 1 Movement Numpad Keybinds 0 Fullscreen 2 Font 18/SmallcapsGlow Map View 76x50 Tactical HUD 1 Map Filters NONE Filters NONE Steam 1 RUN: 3a946ccc-fe0b-451c-abb6-4b0a41ebb09f